fUST/lending_fUST_20260302
["ID","MTS","AMOUNT","RATE_DAILY","PERIOD"]
[406988609,1772421037954,-384.09667184,0.00012621,2]
[406988611,1772421037964,-500.0,0.00012621,2]
[406988613,1772421037974,-500.0,0.00012621,2]
[406988615,1772421037984,-500.0,0.00012621,2]
[406988617,1772421037993,-500.0,0.00012621,2]
[406988620,1772421038003,-500.0,0.00012621,2]
[406988623,1772421038012,-526.0,0.000128,3]
[406988625,1772421038021,-1630.24991266,0.000129,2]
[406988627,1772421038030,-260.48433097,0.00013273,2]
[406988629,1772421038039,-198.55616798,0.00013273,2]
[406988631,1772421038048,-150.0,0.000137,2]
[406988632,1772421038057,-177.0,0.00013707,2]
[406988633,1772421038066,-1630.24991262,0.0001451,2]
[406988634,1772421038075,-160.22299538,0.0001521,2]
[406988636,1772421038084,-224.33278889,0.0001521,2]
[406988637,1772421038093,-500.0,0.00015964,2]
[406988638,1772421038102,-500.0,0.00015964,2]
[406988639,1772421038111,-500.0,0.00015964,2]
[406988641,1772421038123,-505.03919784,0.00015964,2]
[406988643,1772421038133,-161.33166945,0.00016164,2]
[406988645,1772421038143,-168.11537419,0.00016164,2]
[406988647,1772421038152,-576.42682293,0.000163,2]
[406988649,1772421038162,-1630.24991262,0.0001632,2]
[406988651,1772421038171,-5889.30844416,0.00016364,2]
[406988653,1772421038181,-500.0,0.00016435,2]
[406988655,1772421038192,-479.36378254,0.00016435,2]
[406988657,1772421038202,-500.0,0.00016435,2]
[406988659,1772421038212,-500.0,0.00016435,2]
[406988661,1772421038221,-195.94660758,0.00016435,2]
[406988663,1772421038232,-500.0,0.00016435,2]
[406988666,1772421038242,-500.0,0.00016435,2]
[406988668,1772421038251,-500.0,0.00016435,2]
[406988670,1772421038260,-500.0,0.00016437,2]
[406988671,1772421038269,-194.95898371,0.00016437,2]
[406988674,1772421038279,-500.0,0.00016438,2]
[406988676,1772421038289,-500.0,0.00016438,2]
[406988677,1772421038298,-500.0,0.00016438,2]
[406988679,1772421038308,-500.0,0.00016438,2]
[406988681,1772421038317,-500.0,0.00016438,2]
[406988683,1772421038327,-500.0,0.00016438,2]
[406988686,1772421038336,-500.0,0.00016438,2]
[406988688,1772421038346,-500.0,0.00016438,2]
[406988690,1772421038355,-206.88467698,0.00016438,2]
[406988994,1772421042910,-293.11532302,0.00016438,2]
[406988995,1772421042920,-500.0,0.00016438,2]
[406988996,1772421042929,-7.09984392,0.00016438,2]
[406989003,1772421046822,-143.90015608,0.00016438,2]
[406989004,1772421046830,-151.0,0.00016438,2]
[406989005,1772421046839,-151.0,0.00016438,2]
[406989006,1772421046847,-500.0,0.00016438,2]
[406989007,1772421046855,-95.76651059,0.00016438,2]
[406989022,1772421220319,-500.0,0.0001262,2]
[406989023,1772421220341,-170.92617412,0.0001262,2]
[406989024,1772421220363,-329.07382588,0.0001262,2]
[406989025,1772421222443,-115.19190494,0.0001262,2]
[406989026,1772421222471,-500.0,0.0001262,2]
[406989027,1772421222497,-384.80809506,0.00013273,2]
[406989028,1772421223271,-115.19190494,0.00013273,2]
[406989029,1772421223294,-501.24752619,0.00013273,2]
[406989030,1772421223315,-383.56056887,0.00013821,2]
[406989031,1772421224597,-603.70453224,0.00013821,2]
[406989032,1772421224618,-229.76,0.000159,2]
[406989033,1772421224639,-166.53546776,0.0001595,2]
[406989034,1772421225133,-1000.0,0.0001595,2]
[406989035,1772421226922,-1000.0,0.0001595,2]
[406989036,1772421228087,-1000.0,0.0001595,2]
[406989037,1772421229286,-1000.0,0.0001595,2]
[406989038,1772421233603,-600.0,0.0001595,2]
[406989039,1772421257537,-5000.0,0.0001579,2]
[406989040,1772421257559,-233.46453224,0.0001595,2]
[406989041,1772421257582,-500.0,0.00015964,2]
[406989042,1772421272243,3714.36388029,0.00016,2]
[406989043,1772421278184,-150.0,0.00016031,2]
[406989044,1772421280645,102.17158747,0.000161,2]
[406989080,1772422231934,-4624.983028,0.00011766,2]
[406989333,1772422240836,-33.60193682,0.00011648,2]
[406989336,1772422240853,-453.31402433,0.00011648,2]
[406989338,1772422240867,-2070.47991618,0.00011648,2]
[406989426,1772422243090,-1409.79499492,0.00011648,2]
[406989431,1772422243709,-696.69148532,0.00011648,2]
[406989432,1772422243742,-87.22003288,0.00011648,2]
[406989445,1772422246408,-248.89760955,0.00011648,2]
[406989446,1772422246418,-375.016972,0.00011766,2]
[406989447,1772422246428,-150.0,0.00011826,2]
[406989448,1772422246438,-1200.0,0.00012003,2]
[406989449,1772422246448,-300.0,0.00012004,2]
[406989450,1772422246458,-300.0,0.00012004,2]
[406989451,1772422246468,-300.0,0.00012004,2]
[406989452,1772422246480,-292.0,0.00012004,2]
[406989453,1772422246490,-402.0,0.00013178,2]
[406989454,1772422246504,-245.0,0.00013178,2]
[406989455,1772422246513,-400.0,0.00013203,2]
[406989456,1772422246523,-505.99429996,0.00013273,2]
[406989457,1772422246533,-500.0,0.00013698,2]
[406989458,1772422246544,-177.0,0.00013826,2]
[406989459,1772422246553,-6464.0305271,0.00015862,2]
[406989460,1772422246563,-3776.4257884,0.00015862,2]
[406989461,1772422246573,-585.22,0.00015999,2]
[406989462,1772422246583,-1215.43048488,0.00016,2]
[406989463,1772422246593,-200.0,0.00016,2]
[406989464,1772422246603,-500.0,0.00016363,2]
[406989465,1772422246612,-151.0,0.00016432,2]
[406989466,1772422246622,-151.0,0.00016432,2]
[406989467,1772422246632,-151.0,0.00016432,2]
[406989468,1772422246642,-500.0,0.00016432,2]
[406989469,1772422246652,-503.51765951,0.00016432,2]
[406989470,1772422246661,-500.0,0.00016432,2]
[406989471,1772422246671,-302.40183391,0.00016432,2]
[406989472,1772422246681,-500.0,0.00016432,2]
[406989473,1772422246691,-500.0,0.00016432,2]
[406989474,1772422246700,-500.0,0.00016432,2]
[406989475,1772422246709,-500.0,0.00016432,2]
[406989476,1772422246719,-500.0,0.00016432,2]
[406989477,1772422246728,-500.0,0.00016432,2]
[406989478,1772422246738,-500.0,0.00016432,2]
[406989479,1772422246748,-160.47397009,0.00016432,2]
[406989480,1772422246758,-200.0,0.00016432,2]
[406989481,1772422246768,-500.0,0.00016432,2]
[406989482,1772422246777,-500.0,0.00016432,2]
[406989483,1772422246787,-500.0,0.00016432,2]
[406989484,1772422246797,-500.0,0.00016432,2]
[406989485,1772422246806,-500.0,0.00016432,2]
[406989486,1772422246815,-472.69965333,0.00016432,2]
[406989487,1772422246825,-500.0,0.00016432,2]
[406989488,1772422246835,-500.0,0.00016432,2]
[406989489,1772422246845,-500.0,0.00016432,2]
[406989490,1772422246854,-161.0059034,0.00016432,2]
[406989491,1772422246863,-500.0,0.00016432,2]
[406989492,1772422246873,-500.0,0.00016432,2]
[406989493,1772422246882,-500.0,0.00016432,2]
[406989494,1772422246892,-500.0,0.00016432,2]
[406989495,1772422246901,-500.0,0.00016432,2]
[406989496,1772422246911,-650.0,0.00016432,2]
[406989497,1772422246920,-500.0,0.00016432,2]
[406989498,1772422246930,-500.0,0.00016432,2]
[406989499,1772422246939,-500.0,0.00016432,2]
[406989500,1772422246949,-500.0,0.00016432,2]
[406989501,1772422246958,-500.0,0.00016432,2]
[406989502,1772422246968,-500.0,0.00016432,2]
[406989503,1772422246978,-500.0,0.00016432,2]
[406989504,1772422246987,-500.0,0.00016432,2]
[406989505,1772422246996,-500.0,0.00016432,2]
[406989506,1772422247006,-500.0,0.00016432,2]
[406989507,1772422247015,-500.0,0.00016432,2]
[406989508,1772422247025,-500.0,0.00016432,2]
[406989509,1772422247034,-500.0,0.00016432,2]
[406989510,1772422247044,-500.0,0.00016432,2]
[406989511,1772422247053,-500.0,0.00016432,2]
[406989512,1772422247063,-500.0,0.00016432,2]
[406989513,1772422247072,-500.0,0.00016432,2]
[406989514,1772422247082,-500.0,0.00016432,2]
[406989515,1772422247091,-500.0,0.00016432,2]
[406989516,1772422247100,-500.0,0.00016432,2]
[406989517,1772422247109,-500.0,0.00016432,2]
[406989518,1772422247119,-500.0,0.00016432,2]
[406989519,1772422247128,-500.0,0.00016432,2]
[406989520,1772422247137,-500.0,0.00016432,2]
[406989521,1772422247147,-500.0,0.00016432,2]
[406989522,1772422247157,-500.0,0.00016432,2]
[406989523,1772422247166,-500.0,0.00016432,2]
[406989524,1772422247180,-432.90963189,0.00016432,2]
[406989525,1772422247190,-500.0,0.00016432,2]
[406989526,1772422247199,-500.0,0.00016432,2]
[406989527,1772422247209,-500.0,0.00016432,2]
[406989528,1772422247219,-500.0,0.00016432,2]
[406989529,1772422247228,-500.0,0.00016432,2]
[406989530,1772422247238,-500.0,0.00016432,2]
[406989531,1772422247249,-500.0,0.00016432,2]
[406989532,1772422247258,-500.0,0.00016432,2]
[406989533,1772422247267,-500.0,0.00016432,2]
[406989534,1772422247277,-500.0,0.00016432,2]
[406989535,1772422247286,-253.59858658,0.00016432,2]
[406989536,1772422247295,-459.24058853,0.00016432,2]
[406989537,1772422247304,-500.0,0.00016432,2]
[406989538,1772422247314,-500.0,0.00016432,2]
[406989539,1772422247323,-500.0,0.00016432,2]
[406989540,1772422247333,-500.0,0.00016432,2]
[406989541,1772422247343,-500.0,0.00016432,2]
[406989542,1772422247355,-500.0,0.00016432,2]
[406989543,1772422247366,-500.0,0.00016432,2]
[406989544,1772422247376,-504.29687999,0.00016432,2]
[406989545,1772422247386,-500.0,0.00016432,2]
[406989546,1772422247396,-500.0,0.00016432,2]
[406989547,1772422247406,-500.0,0.00016432,2]
[406989548,1772422247416,-500.0,0.00016432,2]
[406989549,1772422247425,-500.0,0.00016432,2]
[406989550,1772422247435,-500.0,0.00016432,2]
[406989551,1772422247446,-500.0,0.00016432,2]
[406989552,1772422247457,-500.0,0.00016432,2]
[406989553,1772422247467,-500.0,0.00016437,2]
[406989554,1772422247477,-485.29688003,0.00016437,2]
[406989555,1772422247487,-500.0,0.00016437,2]
[406989556,1772422247497,-500.0,0.00016437,2]
[406989557,1772422247509,-483.09017775,0.00016437,2]
[406989558,1772422247519,-5116.82470889,0.00016438,2]
[406989559,1772422247528,-500.0,0.00016438,2]
[406989560,1772422247537,-500.0,0.00016438,2]
[406989561,1772422247548,-537.9573994,0.00016438,2]
[406989562,1772422247557,-500.0,0.00016438,2]
[406989563,1772422247567,-500.0,0.00016438,2]
[406989564,1772422247578,-500.35017452,0.00016438,2]
[406989565,1772422247588,-536.03283216,0.00016438,2]
[406989566,1772422247598,-500.98248255,0.00016438,2]
[406989567,1772422247607,-502.07876849,0.00016438,2]
[406989568,1772422247617,-501.11345095,0.00016438,2]
[406989569,1772422247627,-500.96352085,0.00016438,2]
[406989570,1772422247638,-500.0,0.00016438,2]
[406989571,1772422247648,-500.0,0.00016438,2]
[406989572,1772422247657,-500.69192161,0.00016438,2]
[406989573,1772422247667,-500.0,0.00016438,2]
[406989574,1772422247677,-476.63967353,0.00016438,2]
[406989575,1772422248071,-23.36032647,0.00016438,2]
[406989576,1772422248081,-500.0,0.00016438,2]
[406989577,1772422248090,-500.0,0.00016438,2]
[406989578,1772422248100,-500.0,0.00016438,2]
[406989579,1772422248111,-289.70153677,0.00016438,2]
[406989580,1772422248120,-500.0,0.00016438,2]
[406989581,1772422248130,-500.0,0.00016438,2]
[406989582,1772422248139,-646.65651969,0.00016438,2]
[406989583,1772422248149,-500.0,0.00016438,2]
[406989584,1772422248158,-500.0,0.00016438,2]
[406989585,1772422248168,-500.0,0.00016438,2]
[406989586,1772422248177,-500.0,0.00016438,2]
[406989587,1772422248186,-500.0,0.00016438,2]
[406989588,1772422248195,-500.0,0.00016438,2]
[406989589,1772422248204,-500.0,0.00016438,2]
[406989590,1772422248214,-500.0,0.00016438,2]
[406989591,1772422248224,-500.0,0.00016438,2]
[406989592,1772422248236,-500.0,0.00016438,2]
[406989593,1772422248246,-500.0,0.00016438,2]
[406989594,1772422248256,-109.07179787,0.00016438,2]
[406989595,1772422272921,-696.69148532,0.00011417,2]
[406989597,1772422633611,-1000.0,0.00010857,2]
[406989598,1772422635403,-1000.0,0.00010857,2]
[406989599,1772422636323,-622.90721121,0.00010857,2]
[406989600,1772422636347,-377.09278879,0.00010967,2]
[406989601,1772422637412,-1000.0,0.00010748,2]
[406989602,1772422638439,-1000.0,0.00010748,2]
[406989603,1772422639581,-1000.0,0.00010748,2]
[406989604,1772422640859,-1000.0,0.00010748,2]
[406989605,1772422642095,-1000.0,0.00010748,2]
[406989606,1772422643384,-1000.0,0.00010967,2]
[406989607,1772422648276,-900.0,0.00010967,2]
[406989608,1772422756898,-1000.0,0.00010748,2]
[406989609,1772422759132,-1000.0,0.00010748,2]
[406989610,1772422760266,-1000.0,0.00010748,2]
[406989611,1772422761236,-1000.0,0.00010748,2]
[406989612,1772422762278,-1000.0,0.00010748,2]
[406989613,1772422763289,-1000.0,0.00010857,2]
[406989614,1772422764264,-1000.0,0.00010857,2]
[406989615,1772422765354,-1000.0,0.00010857,2]
[406989616,1772422766490,-1000.0,0.00010857,2]
[406989617,1772422767553,-1000.0,0.00010857,2]
[406989619,1772422804477,152.4,9.5e-05,2]
[406989622,1772422804892,152.4,9.5e-05,2]
[406989625,1772422805326,152.4,9.6e-05,2]
[406989627,1772422805753,152.4,9.6e-05,2]
[406989629,1772422806627,152.4,9.6e-05,2]
[406989630,1772422806837,152.4,9.6e-05,2]
[406989631,1772422807332,152.4,9.7e-05,2]
[406989632,1772422807846,152.4,9.7e-05,2]
[406989633,1772422808263,152.4,9.7e-05,2]
[406989634,1772422808764,152.4,9.8e-05,2]
[406989635,1772422809097,169.548365,7.321e-05,2]
[406989636,1772422809191,152.4,9.8e-05,2]
[406989637,1772422809613,152.4,9.8e-05,2]
[406989638,1772422810106,152.4,9.8e-05,2]
[406989639,1772422810518,152.4,9.9e-05,2]
[406989640,1772422811309,152.4,9.9e-05,2]
[406989641,1772422811413,152.4,9.9e-05,2]
[406989642,1772422811853,152.4,9.9e-05,2]
[406989643,1772422812362,152.4,0.0001,2]
[406989644,1772422812776,152.4,0.0001,2]
[406989645,1772422813196,152.4,0.0001,2]
[406989646,1772422850512,304.65,9.501e-05,2]
[406989647,1772422887616,-152.4,0.000101,2]
[406989648,1772422887643,-152.4,0.000101,2]
[406989649,1772422887670,-152.4,0.000101,2]
[406989650,1772422887695,-152.4,0.000101,2]
[406989651,1772422887722,-152.4,0.000102,2]
[406989652,1772422887747,-152.4,0.000102,2]
[406989653,1772422887770,-152.4,0.000102,2]
[406989654,1772422887793,-300.0,0.00010299,2]
[406989655,1772422887816,-152.4,0.000103,2]
[406989656,1772422887840,-152.4,0.000103,2]
[406989657,1772422887863,-152.4,0.000103,2]
[406989658,1772422887886,-76.0,0.000103,2]
[406989659,1772422978728,5000.0,0.0001001,2]
[406989662,1772422996168,3191.27,0.0001001,2]
[406989663,1772423001048,2628.3926692,0.0001001,2]
[406989664,1772423154202,10000.0,0.0001,10]
[406989665,1772423162955,10000.0,0.0001,10]
[406989666,1772423170395,10000.0,0.0001,10]
[406989667,1772423181993,2174.0,0.0001,10]
[406989668,1772423350841,2722.90721121,0.0001001,2]
[406989670,1772423432083,-150.0,0.00010274,2]
[406989671,1772423432093,-76.4,0.000103,2]
[406989672,1772423432102,-200.0,0.00010324,2]
[406989674,1772423432111,-152.4,0.000104,2]
[406989676,1772423432121,-152.4,0.000104,2]
[406989678,1772423432130,-152.4,0.000104,2]
[406989680,1772423432139,-200.0,0.00011617,2]
[406989682,1772423432149,-177.0,0.00012274,2]
[406989684,1772423432158,-200.0,0.00012983,2]
[406989686,1772423432168,-452.6952127,0.00013844,2]
[406989688,1772423432177,-200.0,0.00014428,2]
[406989690,1772423432186,-162.01187,0.00014801,2]
[406989691,1772423432195,-587.13414959,0.00015148,7]
[406989693,1772423432204,-162.01187,0.00015839,2]
[406989695,1772423432213,-500.0,0.00015861,2]
[406989696,1772423432222,-200.0,0.00015955,2]
[406989698,1772423432231,-187.75764234,0.00015985,7]
[406989700,1772423432240,-500.0,0.00016163,2]
[406989702,1772423432251,-500.0,0.00016218,2]
[406989704,1772423432260,-151.0,0.00016233,2]
[406989705,1772423432269,-151.0,0.00016233,2]
[406989707,1772423432279,-151.0,0.00016233,2]
[406989709,1772423432288,-151.0,0.00016233,2]
[406989711,1772423432297,-151.0,0.00016233,2]
[406989713,1772423432307,-2487.15318209,0.00016233,2]
[406989715,1772423432316,-505.31525939,0.00016273,2]
[406989717,1772423432324,-1463.44608871,0.00016316,2]
[406989719,1772423432336,-3061.15593286,0.00016316,2]
[406989722,1772423432347,-973.0,0.00016316,2]
[406989798,1772423438339,-941.81791522,0.00016316,2]
[406989799,1772423438356,-3178.71941801,0.00016316,2]
[406989800,1772423438366,-52350.35344941,0.00016328,2]
[406989801,1772423438378,-77127.43645519,0.00016328,2]
[406989802,1772423438402,-79257.24522604,0.00016328,2]
[406990006,1772423443281,-1179.67946753,0.00016328,2]
[406990007,1772423443293,-3256.23330091,0.00016328,2]
[406990008,1772423443336,-3235.9567279,0.00016328,2]
[406990009,1772423443349,-7564.62799586,0.00016328,2]
[406990013,1772423446769,-1172.25521972,0.00016165,2]
[406990014,1772423446782,-1162.47419943,0.00016165,2]
[406990015,1772423446792,-7260.06181082,0.00016328,2]
[406990017,1772423663853,504.3,0.0001001,2]
[406990018,1772424043577,-473.88127943,0.00011962,2]
[406990061,1772424632999,-2270.96623681,0.00010928,2]
[406990062,1772424633008,-2081.76255945,0.00011038,2]
[406990063,1772424633028,-2334.72941915,0.00011038,2]
[406990098,1772424638524,-583.5080214,0.00011038,2]
[406990100,1772424638534,-1438.87496981,0.00011149,2]
[406990132,1772424638878,-3561.12503019,0.00011149,2]
[406990133,1772424638888,-300.0,0.00011375,2]
[406990134,1772424638897,-200.0,0.00011407,2]
[406990135,1772424638906,-809.0936588,0.00011511,2]
[406990136,1772424638915,-150.0,0.00011666,2]
[406990137,1772424638924,-709.75,0.00012329,2]
[406990138,1772424638933,-591.46,0.00012329,2]
[406990139,1772424638942,-492.88,0.00012329,2]
[406990140,1772424638951,-410.74,0.00012329,2]
[406990141,1772424638961,-342.28,0.00012329,2]
[406990142,1772424638970,-285.23,0.00012329,2]
[406990143,1772424638980,-8699.0,0.00012329,2]
[406990144,1772424638989,-420.0,0.00012495,2]
[406990145,1772424638998,-314.2036657,0.000125,2]
[406990146,1772424639008,-531.64435335,0.00012871,2]
[406990147,1772424639018,-233.48779248,0.00012871,2]
[406990148,1772424639027,-500.0,0.00012871,2]
[406990149,1772424639035,-184.55621149,0.00012871,2]
[406990150,1772424639045,-500.0,0.00012871,2]
[406990151,1772424639054,-500.0,0.00012871,2]
[406990152,1772424639063,-500.0,0.00012871,2]
[406990153,1772424639073,-500.0,0.00012871,2]
[406990154,1772424639082,-500.0,0.00012871,2]
[406990155,1772424639091,-500.0,0.00012871,2]
[406990156,1772424639100,-500.0,0.00012871,2]
[406990157,1772424639110,-360.56635592,0.00012871,2]
[406990158,1772424639119,-500.0,0.00012871,2]
[406990159,1772424639129,-500.0,0.00012871,2]
[406990160,1772424639139,-500.0,0.00012871,2]
[406990161,1772424639149,-500.0,0.00012871,2]
[406990162,1772424639159,-500.0,0.00012871,2]
[406990163,1772424639170,-500.0,0.00012871,2]
[406990164,1772424639179,-500.0,0.00012871,2]
[406990165,1772424639189,-500.0,0.00012871,2]
[406990166,1772424639197,-500.0,0.00012871,2]
[406990167,1772424639206,-500.0,0.00012871,2]
[406990168,1772424639215,-500.0,0.00012871,2]
[406990169,1772424639223,-500.0,0.00012871,2]
[406990170,1772424639232,-500.0,0.00012871,2]
[406990171,1772424639244,-500.0,0.00012871,2]
[406990172,1772424639253,-500.0,0.00012871,2]
[406990173,1772424639261,-500.0,0.00012871,2]
[406990174,1772424639269,-500.0,0.00012871,2]
[406990175,1772424639278,-500.0,0.00012871,2]
[406990176,1772424639286,-500.0,0.00012871,2]
[406990177,1772424639294,-465.37323752,0.00012871,2]
[406990178,1772424639303,-500.0,0.00012871,2]
[406990179,1772424639312,-500.0,0.00012871,2]
[406990180,1772424639320,-500.0,0.00012871,2]
[406990181,1772424639330,-500.0,0.00012871,2]
[406990182,1772424639339,-500.0,0.00012871,2]
[406990183,1772424639349,-500.0,0.00012871,2]
[406990184,1772424639358,-500.0,0.00012871,2]
[406990185,1772424639367,-500.0,0.00012871,2]
[406990186,1772424639376,-500.0,0.00012871,2]
[406990187,1772424639385,-500.0,0.00012871,2]
[406990188,1772424639394,-500.0,0.00012871,2]
[406990189,1772424639403,-500.0,0.00012871,2]
[406990190,1772424639413,-500.0,0.00012871,2]
[406990191,1772424639422,-500.0,0.00012871,2]
[406990192,1772424639431,-500.0,0.00012871,2]
[406990193,1772424639441,-500.0,0.00012871,2]
[406990194,1772424639450,-500.0,0.00012871,2]
[406990195,1772424639459,-500.0,0.00012871,2]
[406990196,1772424639468,-500.0,0.00012871,2]
[406990197,1772424639478,-500.0,0.00012871,2]
[406990198,1772424639487,-500.0,0.00012871,2]
[406990199,1772424639497,-95.85220247,0.00012871,2]
[406990200,1772424639509,-404.14779753,0.00012871,2]
[406990201,1772424639519,-500.0,0.00012871,2]
[406990202,1772424639530,-500.0,0.00012871,2]
[406990203,1772424639540,-500.0,0.00012871,2]
[406990204,1772424639551,-500.0,0.00012871,2]
[406990205,1772424639561,-500.0,0.00012871,2]
[406990206,1772424639574,-500.0,0.00012871,2]
[406990207,1772424639585,-500.0,0.00012871,2]
[406990208,1772424639594,-500.0,0.00012871,2]
[406990209,1772424639604,-500.0,0.00012871,2]
[406990210,1772424639614,-500.0,0.00012871,2]
[406990211,1772424639624,-500.0,0.00012871,2]
[406990212,1772424639634,-500.0,0.00012871,2]
[406990213,1772424639644,-500.0,0.00012871,2]
[406990214,1772424639653,-642.94957192,0.00012871,2]
[406990215,1772424639662,-500.0,0.00012871,2]
[406990216,1772424639672,-500.0,0.00012871,2]
[406990217,1772424639681,-500.0,0.00012871,2]
[406990218,1772424639691,-500.0,0.00012871,2]
[406990219,1772424639701,-500.0,0.00012871,2]
[406990220,1772424639710,-300.0,0.00012873,2]
[406990221,1772424639719,-300.0,0.00012873,2]
[406990222,1772424639729,-300.0,0.00012873,2]
[406990223,1772424639738,-300.0,0.00012873,2]
[406990224,1772424639748,-300.0,0.00012873,2]
[406990225,1772424639758,-300.0,0.00012873,2]
[406990226,1772424639767,-300.0,0.00012873,2]
[406990227,1772424639776,-300.0,0.00012873,2]
[406990228,1772424639786,-300.0,0.00012873,2]
[406990229,1772424639795,-300.0,0.00012873,2]
[406990230,1772424639804,-300.0,0.00012873,2]
[406990231,1772424639814,-300.0,0.00012873,2]
[406990232,1772424639823,-300.0,0.00012873,2]
[406990233,1772424639832,-300.0,0.00012873,2]
[406990234,1772424639841,-300.0,0.00012873,2]
[406990235,1772424639851,-1417.12545232,0.000129,2]
[406990236,1772424639862,-600.0,0.00013129,2]
[406990237,1772424639871,-200.0,0.00013166,2]
[406990238,1772424639880,-500.0,0.00013273,2]
[406990239,1772424639889,-500.0,0.00013273,2]
[406990240,1772424639899,-500.0,0.00013273,2]
[406990241,1772424639908,-500.0,0.00013273,2]
[406990242,1772424639918,-328.11872673,0.00013273,2]
[406990243,1772424639927,-500.0,0.00013273,2]
[406990244,1772424639936,-500.0,0.00013273,2]
[406990245,1772424640165,-500.0,0.00013273,2]
[406990246,1772424640175,-500.0,0.00013273,2]
[406990247,1772424640184,-500.0,0.00013273,2]
[406990248,1772424640193,-500.0,0.00013273,2]
[406990250,1772424640203,-500.0,0.00013273,2]
[406990251,1772424640212,-800.58946575,0.00013273,2]
[406990252,1772424640221,-151.0,0.00013597,2]
[406990253,1772424640231,-151.0,0.00013597,2]
[406990254,1772424640243,-156.725643,0.00013597,2]
[406990255,1772424640253,-177.0,0.00013666,2]
[406990257,1772424640262,-150.0,0.00013673,2]
[406990259,1772424640271,-500.0,0.00013698,2]
[406990261,1772424640281,-500.0,0.00013698,2]
[406990263,1772424640291,-151.0,0.00013699,2]
[406990265,1772424640301,-151.0,0.00013699,2]
[406990267,1772424640310,-151.0,0.00013699,2]
[406990269,1772424640320,-151.0,0.00013699,2]
[406990271,1772424640329,-500.0,0.00013699,2]
[406990273,1772424640338,-500.0,0.00013699,2]
[406990275,1772424640347,-500.0,0.00013699,2]
[406990277,1772424640356,-508.93531015,0.00013699,2]
[406990279,1772424640366,-500.0,0.00013699,2]
[406990281,1772424640375,-500.0,0.00013699,2]
[406990283,1772424640384,-500.0,0.00013699,2]
[406990285,1772424640393,-500.0,0.00013699,2]
[406990287,1772424640402,-500.0,0.00013699,2]
[406990289,1772424640411,-500.0,0.00013699,2]
[406990291,1772424640421,-500.0,0.00013699,2]
[406990293,1772424640430,-500.0,0.00013699,2]
[406990295,1772424640438,-538.94535637,0.00013699,2]
[406990297,1772424640447,-500.0,0.00013699,2]
[406990299,1772424640456,-500.0,0.00013699,2]
[406990301,1772424640465,-500.0,0.00013699,2]
[406990303,1772424640475,-150.0,0.000137,2]
[406990305,1772424640485,-500.0,0.00013818,2]
[406990307,1772424640494,-500.0,0.00013818,2]
[406990309,1772424640503,-500.0,0.00013818,2]
[406990311,1772424640512,-369.64101655,0.00013818,2]
[406990313,1772424640521,-523.63884589,0.00013818,2]
[406990315,1772424640531,-151.489235,0.00013819,2]
[406990316,1772424640540,-151.489235,0.00013819,2]
[406990318,1772424640550,-151.489235,0.00013819,2]
[406990320,1772424640559,-151.489235,0.00013819,2]
[406990323,1772424640569,-151.0,0.00013819,2]